bitfinex/quotes_ETHUSD_20251130
["timestamp","ask_amount","ask_price","bid_price","bid_amount"]
[1764521277424,0.2425,3050.0,3049.9,3.27879602]
[1764521278745,0.2425,3050.0,3049.8,3.31164222]
[1764521279547,0.002,3050.4,3049.9,0.9692]
[1764521280416,0.002,3050.4,3050.0,0.4943]
[1764521280827,0.002,3050.4,3050.1,3.27858103]
[1764521281461,0.002,3050.4,3050.3,0.4749]
[1764521281640,0.002,3050.4,3050.3,3.87429721]
[1764521281826,0.002,3050.4,3050.3,0.9692]
[1764521283040,0.002,3050.4,3050.3,4.24756606]
[1764521283271,0.002,3050.4,3050.3,3.27836606]
[1764521283764,0.002,3050.4,3050.3,3.75326606]
[1764521284343,0.002,3050.4,3050.3,4.24756606]
[1764521286840,0.002,3050.4,3050.3,7.64696327]
[1764521289340,0.002,3050.4,3050.3,3.27836606]
[1764521289572,0.002,3050.4,3050.3,7.67974693]
[1764521289759,0.002,3050.4,3050.3,7.64696327]
[1764521292281,0.002,3050.4,3050.3,8.05246727]
[1764521292486,0.002,3050.4,3050.3,8.77806138]
[1764521292842,0.002,3050.4,3050.3,8.90934041]
[1764521293345,0.002,3050.4,3050.3,9.24098097]
[1764521293550,0.002,3050.4,3050.3,8.90934041]
[1764521294376,0.002,3050.4,3050.3,17.55579041]
[1764521294578,0.002,3050.4,3050.3,21.40579041]
[1764521294879,0.002,3050.4,3050.3,12.75934041]
[1764521295645,0.002,3050.8,3050.4,2.10029811]
[1764521295870,0.002,3050.8,3050.7,5.33703588]
[1764521296074,0.002,3050.8,3050.7,6.03833588]
[1764521296903,0.002,3050.8,3050.7,6.76392999]
[1764521297675,0.002,3050.8,3050.7,13.44126341]
[1764521297875,0.002,3050.8,3050.7,10.0418662]
[1764521298802,0.002,3050.8,3050.7,6.23696499]
[1764521299106,0.002,3050.8,3050.7,10.0418662]
[1764521299405,0.002,3050.8,3050.7,9.6363622]
[1764521299614,0.002,3050.8,3050.7,10.0418662]
[1764521301611,0.002,3050.8,3050.7,5.34162843]
[1764521301907,0.002,3050.8,3050.7,5.81652843]
[1764521302076,0.002,3050.8,3050.7,6.31082843]
[1764521305019,0.002,3050.8,3050.7,5.34162843]
[1764521305221,0.002,3050.8,3050.7,5.82502843]
[1764521305893,0.002,3050.8,3050.7,6.64136899]
[1764521306099,0.002,3050.8,3050.7,6.30972843]
[1764521306398,0.002,3050.8,3050.7,6.64136899]
[1764521306726,0.002,3050.8,3050.7,6.67414835]
[1764521306894,0.002,3050.8,3050.7,6.64136899]
[1764521308424,0.002,3050.8,3050.7,6.30972843]
[1764521308625,0.002,3050.8,3050.7,6.34250779]
[1764521308797,0.002,3050.8,3050.7,6.30972843]
[1764521308991,0.002,3050.8,3050.7,6.34250779]
[1764521309499,0.002,3050.8,3050.7,6.30972843]
[1764521310122,0.002,3050.8,3050.7,6.34250779]
[1764521311135,0.002,3050.8,3050.7,6.67414835]
[1764521311439,0.002,3050.8,3050.7,6.64136899]
[1764521312001,0.002,3050.8,3050.7,6.30972843]
[1764521312213,0.002,3050.8,3050.7,6.67414835]
[1764521312410,0.002,3050.8,3050.7,6.30972843]
[1764521312609,0.002,3050.8,3050.7,6.34250779]
[1764521312829,0.002,3050.8,3050.7,6.64136899]
[1764521314537,0.002,3050.8,3050.7,6.30972843]
[1764521314833,0.002,3050.8,3050.7,6.64136899]
[1764521315037,0.002,3050.8,3050.7,9.741905]
[1764521315226,0.002,3050.8,3050.7,10.0407662]
[1764521315623,0.002,3050.8,3050.7,40.0407662]
[1764521315933,0.002,3050.8,3050.7,11.78699243]
[1764521316306,0.002,3051.2,3051.1,0.73714456]
[1764521316512,0.002,3051.2,3051.1,5.77560463]
[1764521316712,0.002,3051.2,3051.1,6.26030463]
[1764521318438,0.002,3051.2,3051.1,9.5378111]
[1764521318641,0.002,3051.2,3051.1,9.50503604]
[1764521321317,0.002,3051.2,3051.1,9.74753604]
[1764521321539,0.002,3051.2,3051.1,8.85733204]
[1764521321739,0.002,3051.2,3051.1,9.34203204]
[1764521322041,0.002,3051.2,3051.1,9.14563204]
[1764521322413,0.002,3051.2,3051.1,9.55113604]
[1764521322717,0.002,3051.2,3051.1,5.67314514]
[1764521322927,0.002,3051.2,3051.1,5.85897964]
[1764521323943,0.2445,3051.2,3051.1,8.25139548]
[1764521324118,0.002,3051.2,3051.1,8.58303604]
[1764521324315,0.002,3051.2,3051.1,5.18974514]
[1764521324643,0.2445,3051.2,3051.1,5.18974514]
[1764521325641,0.002,3051.2,3051.1,5.18974514]
[1764521326039,0.2445,3051.2,3051.1,5.18974514]
[1764521328763,0.2445,3051.2,3051.1,4.85810458]
[1764521329332,0.002,3051.2,3051.1,5.34150458]
[1764521329548,0.002,3051.2,3051.1,5.82620458]
[1764521330550,0.002,3051.2,3051.1,5.34150458]
[1764521330751,0.002,3051.2,3051.1,4.85810458]
[1764521331963,0.002,3051.2,3051.1,5.82620458]
[1764521332151,0.002,3051.2,3051.1,6.1906202]
[1764521337915,0.002,3051.2,3051.1,5.85897964]
[1764521339488,0.002,3051.2,3051.1,6.28969442]
[1764521339688,0.002,3051.2,3051.1,5.85897964]
[1764521340610,0.002,3051.2,3051.1,7.93413244]
[1764521340815,0.002,3051.2,3051.1,7.90135738]
[1764521341299,0.002,3051.2,3051.1,7.20965738]
[1764521341500,0.002,3051.2,3051.1,11.30964828]
[1764521341888,0.2445,3051.2,3051.1,4.45260058]
[1764521342214,0.002,3051.2,3051.1,8.17753204]
[1764521342387,0.2445,3051.2,3051.1,8.58303604]
[1764521343016,0.002,3051.2,3051.1,8.58303604]
[1764521343426,0.002,3051.2,3051.1,9.04523604]
[1764521343624,0.002,3051.2,3051.1,8.71359548]
[1764521343978,0.002,3051.2,3051.1,9.21329548]
[1764521344821,0.2445,3051.2,3051.1,8.58303604]
[1764521345200,0.487,3051.2,3051.1,4.85810458]
[1764521345391,0.2445,3051.2,3051.1,4.85810458]
[1764521345932,0.002,3051.2,3051.1,8.6158111]
[1764521346115,0.002,3051.2,3051.1,8.58303604]
[1764521348125,0.2445,3051.2,3051.1,8.58303604]
[1764521349091,0.487,3051.2,3051.1,8.25139548]
[1764521349727,0.487,3051.2,3051.1,4.21010058]
[1764521350031,0.487,3051.2,3051.1,3.48450647]
[1764521350227,0.487,3051.2,3051.1,0.03277506]
[1764521351244,0.487,3051.2,3051.0,0.03277613]
[1764521351527,0.2425,3051.1,3051.0,0.03277613]
[1764521351695,0.485,3051.1,3051.0,0.03277613]
[1764521352309,0.485,3051.1,3051.0,3.31039002]
[1764521354953,0.2425,3051.1,3051.0,3.31039002]
[1764521356055,0.485,3051.1,3050.8,0.001]
[1764521356215,0.3282,3050.9,3050.8,0.001]
[1764521356631,0.5707,3050.9,3050.8,0.001]
[1764521358619,0.5707,3050.9,3050.8,0.03377828]
[1764521358820,0.3282,3050.9,3050.8,0.03377828]
[1764521359241,0.3282,3050.9,3050.8,0.001]
[1764521359447,0.0857,3050.9,3050.8,0.001]
[1764521359628,0.2425,3050.9,3050.8,0.208]
[1764521360127,0.2425,3050.9,3050.8,0.24077828]
[1764521361149,0.2425,3050.9,3050.8,3.51860704]
[1764521361338,0.485,3050.9,3050.8,3.51860704]
[1764521361521,0.485,3050.9,3050.8,3.48582876]
[1764521361723,0.485,3050.9,3050.8,3.51860704]
[1764521361922,0.485,3050.9,3050.8,3.48582876]
[1764521362121,0.485,3050.9,3050.8,3.51860704]
[1764521362350,0.485,3050.9,3050.8,3.48582876]
[1764521362551,0.485,3050.9,3050.8,3.51860704]
[1764521362750,0.2425,3050.9,3050.8,3.51860704]
[1764521363151,0.002,3051.2,3050.8,13.96565546]
[1764521363323,0.002,3051.2,3050.8,14.40927718]
[1764521364638,0.002,3051.2,3050.9,0.03277721]
[1764521366035,0.2425,3051.0,3050.9,0.03277721]
[1764521366466,0.2425,3051.0,3050.8,10.15694842]
[1764521366972,0.002,3051.2,3050.8,10.04148628]
[1764521368464,0.2445,3051.2,3050.8,6.76365752]
[1764521368623,0.2425,3050.9,3050.8,3.48582876]
[1764521371760,0.2445,3051.2,3050.8,6.76365752]
[1764521371939,0.2445,3051.2,3050.9,0.03277721]
[1764521372534,0.2425,3051.0,3050.8,6.76365752]
[1764521372735,0.0644,3050.9,3050.8,3.48582876]
[1764521373950,0.0644,3050.9,3050.8,3.51860704]
[1764521374536,0.002,3051.2,3050.8,6.7964358]
[1764521374730,0.002,3051.2,3050.8,6.76365752]
[1764521374951,0.002,3051.2,3050.9,0.03277721]
[1764521375670,0.002,3051.2,3051.0,6.55522778]
[1764521375970,0.002,3051.2,3051.1,4.2968949]
[1764521376268,0.002,3051.2,3051.1,5.04856996]
[1764521378136,0.002,3051.2,3051.1,9.05167054]
[1764521378450,0.002,3051.2,3051.1,9.0199663]
[1764521379139,0.002,3051.2,3051.1,5.62560458]
[1764521379341,0.002,3051.2,3051.1,5.65837964]
[1764521379651,0.002,3051.2,3051.1,4.65110458]
[1764521380038,0.002,3051.2,3051.1,5.18197964]
[1764521380240,0.002,3051.2,3051.1,5.65837964]
[1764521380762,0.002,3051.2,3051.1,5.62560458]
[1764521380962,0.002,3051.2,3051.1,5.14920458]
[1764521381359,0.002,3051.2,3051.1,4.65110458]
[1764521381672,0.002,3051.2,3051.1,4.27837564]
[1764521382176,0.002,3051.2,3051.1,4.77647564]
[1764521385184,0.002,3051.2,3051.1,5.22010058]
[1764521386175,0.002,3051.2,3051.1,4.24560058]
[1764521386376,0.2445,3051.2,3051.1,4.24560058]
[1764521387077,0.002,3051.2,3051.1,4.24560058]
[1764521387479,0.2445,3051.2,3051.1,4.24560058]
[1764521387660,0.2445,3051.2,3051.1,4.00310058]
[1764521387973,0.2445,3051.2,3051.1,4.21010058]
[1764521389170,0.002,3051.2,3051.1,4.74097564]
[1764521389368,0.2445,3051.2,3051.1,4.24287564]
[1764521389568,0.002,3051.2,3051.1,4.24287564]
[1764521390875,0.002,3051.2,3051.1,4.21010058]
[1764521390876,0.2445,3051.2,3051.1,4.21010058]
[1764521391187,0.487,3051.2,3051.1,3.27750647]
[1764521391497,0.487,3051.2,3051.1,3.48450647]
[1764521392356,0.2445,3051.2,3051.1,3.48450647]
[1764521392690,0.2445,3051.2,3051.1,3.51728153]
[1764521393088,0.487,3051.2,3051.1,3.48450647]
[1764521394589,0.2445,3051.2,3051.1,3.51728153]
[1764521395479,0.002,3051.2,3051.1,7.85044325]
[1764521395670,0.002,3051.2,3051.1,7.81766819]
[1764521396299,0.002,3051.2,3051.1,3.48450647]
[1764521396473,0.002,3051.2,3051.1,3.51728153]
[1764521400294,0.002,3051.2,3051.1,4.45608153]
[1764521400498,0.002,3051.2,3051.1,8.08883736]
[1764521400666,0.002,3051.2,3051.1,8.5432623]
[1764521400863,0.002,3051.2,3051.1,8.7857623]
[1764521401963,0.2445,3051.2,3051.1,4.78424114]
[1764521402167,0.2445,3051.2,3050.9,3.27767381]
[1764521402168,0.487,3051.2,3050.9,3.27767381]
[1764521402395,0.2425,3051.1,3051.0,0.207]
[1764521402968,0.5709,3051.1,3051.0,0.207]
[1764521403477,0.5709,3051.1,3050.9,3.27767381]
[1764521403478,0.3284,3051.1,3050.9,3.27767381]
[1764521403678,0.0644,3051.0,3050.9,3.48467381]
[1764521403896,0.3069,3051.0,3050.9,3.48467381]
[1764521404097,0.3069,3051.0,3050.9,3.51745102]
[1764521404599,0.0644,3051.0,3050.9,3.51745102]
[1764521405998,0.0644,3051.0,3050.9,3.48467381]
[1764521406198,0.0644,3051.0,3050.9,3.51745102]
[1764521407783,0.0644,3051.0,3050.9,3.48467381]
[1764521408694,0.3069,3051.0,3050.9,0.207]
[1764521409602,0.0644,3051.0,3050.9,3.48472132]
[1764521410066,0.0644,3051.0,3050.9,3.51749853]
[1764521412001,0.002,3051.2,3050.9,7.24681985]
[1764521412298,0.2425,3051.0,3050.9,3.48472132]
[1764521413902,0.485,3051.0,3050.9,0.207]
[1764521417978,0.86471854,3051.0,3050.9,0.207]
[1764521418306,0.485,3051.0,3050.8,0.001]
[1764521418512,0.0644,3050.9,3050.8,0.001]
[1764521418710,0.3069,3050.9,3050.8,0.001]
[1764521419210,0.0644,3050.9,3050.8,3.27882876]
[1764521420694,0.0644,3050.9,3050.8,0.001]
[1764521421015,0.3069,3050.9,3050.8,0.001]
[1764521422313,0.0644,3050.9,3050.8,0.001]
[1764521422894,0.002,3051.0,3050.8,0.001]
[1764521423094,0.2425,3050.9,3050.8,0.001]
[1764521426092,0.485,3050.9,3050.8,0.001]
[1764521426302,0.63063617,3050.9,3050.8,0.001]
[1764521426518,0.2425,3050.9,3050.8,0.001]
[1764521426903,0.002,3051.0,3050.8,0.001]
[1764521427107,0.002,3051.0,3050.9,0.9479]
[1764521427336,0.002,3051.0,3050.9,1.70627132]
[1764521428334,0.002,3051.0,3050.9,4.98399264]
[1764521431410,0.002,3051.0,3050.9,5.7211372]
[1764521431834,0.002,3051.0,3050.9,9.11549892]
[1764521432016,0.002,3051.0,3050.9,22.51048465]
[1764521432543,0.002,3051.0,3050.9,33.04574065]
[1764521432738,0.002,3051.2,3051.1,5.23484514]
[1764521432739,1e-08,3051.2,3051.1,5.23484514]
[1764521432938,1e-08,3051.2,3051.1,27.02495692]
[1764521433253,1e-08,3051.2,3051.1,24.31468047]
[1764521435250,1e-08,3051.2,3051.1,22.57024486]
[1764521435627,0.002,3051.4,3051.3,0.73714456]
[1764521435825,0.002,3051.4,3051.3,5.5914733]
[1764521436041,0.002,3051.4,3051.3,6.0447733]
[1764521436613,0.002,3051.4,3051.3,6.17599634]
[1764521437149,0.002,3051.4,3051.3,9.45328798]
[1764521437351,0.002,3051.4,3051.3,9.08887451]
[1764521437645,0.002,3051.4,3051.3,9.42051507]
[1764521438244,0.002,3051.4,3051.3,9.08887451]
[1764521438575,0.002,3051.4,3051.3,9.08802751]
[1764521441229,0.002,3051.4,3051.3,9.41966807]
[1764521443747,0.002,3051.4,3051.3,9.08802751]
[1764521445755,0.002,3051.4,3051.3,9.41966807]
[1764521445970,0.002,3051.4,3051.3,21.91576507]
[1764521446256,0.002,3051.4,3051.3,21.64517907]
[1764521446455,0.002,3051.4,3051.3,17.80430207]
[1764521447034,0.002,3051.4,3051.3,17.57612807]
[1764521448056,0.002,3051.4,3051.3,21.24350607]
[1764521448730,0.002,3051.4,3051.3,20.91186551]
[1764521449034,0.002,3051.4,3051.3,29.09593351]
[1764521450023,0.002,3051.4,3051.3,25.94070051]
[1764521450670,0.002,3051.4,3051.3,16.62172151]
[1764521450833,0.002,3051.4,3051.3,16.95336207]
[1764521451159,0.002,3051.4,3051.3,18.82912707]
[1764521452057,0.002,3051.4,3051.3,19.36433807]
[1764521452458,0.002,3051.4,3051.3,18.46033807]
[1764521453152,0.002,3051.4,3051.3,19.53966707]
[1764521453327,0.002,3051.4,3051.3,19.05066707]
[1764521454056,0.002,3051.4,3051.3,18.82533451]
[1764521455046,0.002,3051.4,3051.3,12.93802751]
[1764521455353,0.002,3051.4,3051.3,19.97444107]
[1764521456159,0.002,3051.4,3051.3,13.26966807]
[1764521456354,0.002,3051.4,3051.3,12.93802751]
[1764521456664,0.002,3051.4,3051.3,13.26966807]
[1764521458162,0.002,3051.4,3051.3,15.01410368]
[1764521458968,0.002,3051.4,3051.3,13.26966807]
[1764521459155,0.002,3051.4,3051.3,15.01410368]
[1764521459563,0.002,3051.4,3051.3,9.67756312]
[1764521459742,0.2445,3051.4,3051.3,4.67274935]
[1764521459948,0.002,3051.4,3051.3,8.59073698]
[1764521460149,0.002,3051.4,3051.3,8.96346807]
[1764521460844,0.002,3051.4,3051.3,9.12232751]
[1764521461155,0.002,3051.4,3051.3,11.19840368]
[1764521464973,0.002,3051.4,3051.3,9.88456312]
[1764521465153,0.002,3051.4,3051.3,10.21620368]
[1764521465849,0.002,3051.4,3051.3,10.00920368]
[1764521466061,0.002,3051.4,3051.3,6.82268896]
[1764521466460,0.002,3051.4,3051.3,7.31438896]
[1764521467280,0.002,3051.4,3051.3,7.80488896]
[1764521468849,0.002,3051.4,3051.3,11.65488896]
[1764521474184,0.002,3051.4,3051.3,11.3232484]
[1764521474485,0.002,3051.4,3051.3,11.65488896]
[1764521474782,0.002,3051.4,3051.3,11.16438896]
[1764521476109,0.2445,3051.4,3051.3,9.7285444]
[1764521476287,0.2445,3051.4,3051.3,8.05988575]
[1764521476584,0.487,3051.4,3051.3,8.05988575]
[1764521476766,0.2445,3051.4,3051.3,8.05988575]
[1764521478155,0.2445,3051.4,3051.3,7.85288575]
[1764521478351,0.2445,3051.4,3051.3,8.05988575]
[1764521478568,0.2445,3051.4,3051.3,4.20988575]
[1764521478770,0.487,3051.4,3051.3,4.20988575]
[1764521479286,0.487,3051.4,3051.3,3.27729164]
[1764521479487,0.487,3051.4,3051.3,3.48429164]
[1764521479856,0.487,3051.4,3051.1,3.27844609]
[1764521480056,0.0644,3051.2,3051.1,3.48544609]
[1764521480298,0.0644,3051.2,3051.1,0.208]
[1764521480595,0.3069,3051.2,3051.1,0.208]
[1764521481121,0.3069,3051.2,3051.1,3.27850647]
[1764521482873,0.3069,3051.2,3051.1,0.001]
[1764521485389,0.0644,3051.2,3051.1,0.001]
[1764521485766,0.3069,3051.2,3051.1,0.001]
[1764521486197,0.0644,3051.2,3051.1,0.001]
[1764521487272,0.0644,3051.2,3051.1,0.03377506]
[1764521488598,0.3069,3051.2,3051.1,0.001]
[1764521488898,0.3069,3051.2,3051.1,0.208]
[1764521489713,0.3069,3051.2,3051.1,3.48550647]
[1764521490203,0.3069,3051.2,3051.1,3.27850647]
[1764521491482,0.3069,3051.2,3051.1,0.001]
[1764521493790,0.66551123,3051.2,3051.1,0.001]
[1764521494602,0.3069,3051.2,3051.1,0.001]
[1764521498397,0.0644,3051.2,3051.1,0.001]
[1764521498602,0.3069,3051.2,3051.1,0.001]
[1764521500193,0.0644,3051.2,3051.1,0.001]
[1764521507299,0.3069,3051.2,3051.1,0.001]
[1764521509914,0.3089,3051.2,3051.1,0.001]
[1764521510890,0.0664,3051.2,3051.1,0.001]
[1764521511208,0.3089,3051.2,3051.1,0.001]
[1764521512117,0.67099238,3051.2,3051.1,0.001]
[1764521512288,0.70376115,3051.2,3051.1,0.001]
[1764521513741,0.46126115,3051.2,3051.1,0.001]
[1764521514016,0.03476877,3051.2,3051.1,0.001]
[1764521514186,0.002,3051.2,3051.1,0.001]
[1764521514386,0.03476877,3051.2,3051.1,0.001]
[1764521514587,0.27726877,3051.2,3051.1,0.001]
[1764521515912,0.03476877,3051.2,3051.1,0.001]
[1764521516091,0.2445,3051.2,3051.1,0.001]
[1764521516297,0.87541988,3051.2,3051.1,0.001]
[1764521516520,0.63291988,3051.2,3051.1,0.001]
[1764521516818,0.27726877,3051.2,3051.1,0.001]
[1764521517204,0.51976877,3051.2,3051.1,0.001]
[1764521518818,0.002,3051.2,3051.1,0.451]
[1764521519411,0.002,3051.2,3051.1,0.001]
[1764521519712,0.2445,3051.2,3051.1,0.001]
[1764521521908,0.487,3051.2,3051.1,0.001]
[1764521522089,0.8668984,3051.2,3051.1,0.001]
[1764521522288,0.487,3051.2,3051.1,0.001]
[1764521522523,7.1604917,3051.2,3051.1,0.001]
[1764521522722,7.59617215,3051.2,3051.1,0.001]
[1764521522894,7.49617215,3051.2,3051.1,0.001]
[1764521523096,7.59617215,3051.2,3051.1,0.001]
[1764521523326,8.61764798,3051.2,3051.1,0.001]
[1764521523515,8.71764798,3051.2,3051.1,0.001]
[1764521524387,9.44324209,3051.2,3051.1,0.001]
[1764521525098,9.34324209,3051.2,3051.1,0.001]
[1764521525305,5.94714944,3051.2,3051.1,0.001]
[1764521525627,5.97991821,3051.2,3051.1,0.001]
[1764521525789,5.64423776,3051.2,3051.1,0.001]
[1764521525990,9.37601086,3051.2,3051.1,0.001]
[1764521526227,9.34324209,3051.2,3051.1,0.001]
[1764521526625,9.47456034,3051.2,3051.1,0.001]
[1764521526921,9.13887989,3051.2,3051.1,0.001]
[1764521527424,5.35287358,3051.2,3051.1,0.001]
[1764521527613,5.59264235,3051.2,3051.1,0.001]
[1764521528402,2.18392505,3051.2,3051.1,0.001]
[1764521528606,4.09734827,3051.2,3051.1,0.001]
[1764521528800,4.33984827,3051.2,3051.1,0.001]
[1764521529923,4.13284827,3051.2,3051.1,0.001]
[1764521530128,4.33984827,3051.2,3051.1,0.001]
[1764521531301,4.13284827,3051.2,3051.1,0.001]
[1764521531504,5.43379997,3051.2,3051.1,0.001]
[1764521531830,5.22679997,3051.2,3051.1,0.001]
[1764521532010,5.19129997,3051.2,3051.1,0.001]
[1764521532331,5.43379997,3051.2,3051.1,0.001]
[1764521533032,4.85561952,3051.2,3051.1,0.001]
[1764521534040,5.19129997,3051.2,3051.1,0.001]
[1764521534237,0.03476877,3051.2,3051.1,0.451]
[1764521534539,0.03476877,3051.2,3051.1,0.001]
[1764521535199,3.31216782,3051.2,3051.1,0.001]
[1764521535406,3.79716782,3051.2,3051.1,0.001]
[1764521535601,4.52550373,3051.2,3051.1,0.001]
[1764521536336,4.28300373,3051.2,3051.1,0.001]
[1764521536727,1.00560468,3051.2,3051.1,0.001]
[1764521536931,4.28300373,3051.2,3051.1,0.001]
[1764521537102,1.00560468,3051.2,3051.1,0.001]
[1764521537304,4.61868418,3051.2,3051.1,0.001]
[1764521539226,4.86118418,3051.2,3051.1,0.001]
[1764521540042,4.61868418,3051.2,3051.1,0.001]
[1764521540227,4.52550373,3051.2,3051.1,0.001]
[1764521540410,4.86118418,3051.2,3051.1,0.001]
[1764521541835,4.61868418,3051.2,3051.1,0.001]
[1764521543417,4.86118418,3051.2,3051.1,0.001]
[1764521543612,4.52550373,3051.2,3051.1,0.001]
[1764521543945,4.86118418,3051.2,3051.1,0.001]
[1764521546037,4.61868418,3051.2,3051.1,0.001]
[1764521547542,4.28300373,3051.2,3051.1,0.001]
[1764521547749,4.61868418,3051.2,3051.1,0.001]
[1764521548253,4.04050373,3051.2,3051.1,0.4645]
[1764521548428,4.37618418,3051.2,3051.1,0.4645]
[1764521551543,3.85484827,3051.2,3051.1,0.4645]
[1764521551920,0.37044922,3051.2,3051.1,0.4645]
[1764521552216,0.002,3051.2,3051.1,0.9298]
[1764521552628,0.002,3051.2,3051.1,4.20730647]
[1764521552821,0.002,3051.2,3051.1,0.9298]
[1764521553243,0.03476877,3051.2,3051.1,0.9298]
[1764521553547,0.002,3051.2,3051.1,0.9298]
[1764521553753,0.03476877,3051.2,3051.1,0.001]
[1764521554560,0.03476877,3051.2,3051.1,0.4534]
[1764521554719,0.002,3051.2,3051.1,0.4534]
[1764521555127,0.002,3051.2,3051.1,0.9187]
[1764521556053,0.002,3051.2,3051.1,0.4534]
[1764521557063,0.03476877,3051.2,3051.1,0.4534]
[1764521557515,0.03476877,3051.2,3051.1,0.001]
[1764521557914,0.27726877,3051.2,3051.1,0.001]
[1764521558329,7.54891665,3051.2,3051.1,0.001]
[1764521558533,7.85182833,3051.2,3051.1,0.001]
[1764521559035,8.57742244,3051.2,3051.1,0.001]
[1764521560438,5.18132979,3051.2,3051.1,0.001]
[1764521560653,5.21409856,3051.2,3051.1,0.001]
[1764521562358,5.31409856,3051.2,3051.1,0.001]
[1764521562934,5.21409856,3051.2,3051.1,0.001]
[1764521563131,5.44541595,3051.2,3051.1,0.001]
[1764521565265,8.74316889,3051.2,3051.1,0.001]
[1764521565466,8.81040012,3051.2,3051.1,0.001]
[1764521566342,9.21590412,3051.2,3051.1,0.001]
[1764521571931,9.42290412,3051.2,3051.1,0.001]
[1764521575070,9.08040412,3051.2,3051.1,0.001]
[1764521575367,9.18040412,3051.2,3051.1,0.001]
[1764521575566,9.42290412,3051.2,3051.1,0.001]
[1764521577889,9.32290412,3051.2,3051.1,0.001]
[1764521578190,9.18040412,3051.2,3051.1,0.001]
[1764521579306,9.42290412,3051.2,3051.1,0.001]
[1764521579797,9.18040412,3051.2,3051.1,0.001]
[1764521580695,5.37714718,3051.2,3051.1,0.001]
[1764521580987,5.40991595,3051.2,3051.1,0.001]
[1764521581990,5.06741595,3051.2,3051.1,0.4778]
[1764521582357,5.06741595,3051.2,3051.1,0.001]
[1764521584863,5.06741595,3051.2,3051.1,0.4778]
[1764521585584,5.06741595,3051.2,3051.1,0.001]
[1764521586890,4.93609856,3051.2,3051.1,0.4778]
[1764521587693,4.93609856,3051.2,3051.1,0.001]
[1764521595193,5.17859856,3051.2,3051.1,0.001]
[1764521596401,4.93609856,3051.2,3051.1,0.001]
[1764521597189,5.17859856,3051.2,3051.1,0.001]
[1764521598496,4.93609856,3051.2,3051.1,0.4778]
[1764521598695,4.93609856,3051.2,3051.1,0.001]
[1764521599899,8.5763515,3051.2,3051.1,0.001]
[1764521600103,8.64358273,3051.2,3051.1,0.001]
[1764521600312,8.78608273,3051.2,3051.1,0.001]
[1764521600471,8.64358273,3051.2,3051.1,0.001]
[1764521604811,8.40108273,3051.2,3051.1,0.001]
[1764521605215,5.00332979,3051.2,3051.1,0.001]
[1764521605402,5.03609856,3051.2,3051.1,0.001]
[1764521605706,5.03609856,3051.2,3051.1,0.4676]
[1764521607013,5.27859856,3051.2,3051.1,0.001]
[1764521607724,5.03609856,3051.2,3051.1,0.9358]
[1764521608214,5.03609856,3051.2,3051.1,0.4676]
[1764521609679,5.03609856,3051.2,3051.1,0.9358]
[1764521610189,5.03609856,3051.2,3051.1,0.001]
[1764521610609,5.03609856,3051.2,3051.1,0.4888]
[1764521610788,5.53229856,3051.2,3051.1,0.4888]
[1764521611109,5.53229856,3051.2,3051.1,0.985]
[1764521612411,5.53229856,3051.2,3051.1,0.4888]
[1764521615231,5.53229856,3051.2,3051.1,0.985]
[1764521622026,3.80836782,3051.2,3051.1,0.985]
[1764521622227,3.85484827,3051.2,3051.1,0.985]
[1764521624843,7.35166316,3051.2,3051.1,0.001]
[1764521625135,7.21889439,3051.2,3051.1,0.001]
[1764521625336,8.378713,3051.2,3051.1,0.001]
[1764521625538,9.34680711,3051.2,3051.1,0.001]
[1764521625944,9.47812536,3051.2,3051.1,0.001]
[1764521627317,9.72062536,3051.2,3051.1,0.001]
[1764521628329,9.47812536,3051.2,3051.1,0.001]
[1764521630232,9.47812536,3051.2,3050.6,0.001]
[1764521630233,0.405504,3051.0,3050.6,0.001]
[1764521630418,1.63297856,3050.7,3050.6,0.001]
[1764521630618,1.87274733,3050.7,3050.6,0.001]
[1764521630821,2.00410741,3050.7,3050.6,0.001]
[1764521631356,5.18204362,3050.7,3050.6,0.001]
[1764521631555,6.50055198,3050.7,3050.6,0.001]
[1764521632540,6.74305198,3050.7,3050.6,0.001]
[1764521632742,6.46778321,3050.7,3050.6,0.001]
[1764521633045,6.74305198,3050.7,3050.6,0.001]
[1764521633243,6.71028321,3050.7,3050.6,0.001]
[1764521634623,6.36778321,3050.7,3050.6,0.001]
[1764521634932,6.50055198,3050.7,3050.6,0.001]
[1764521636548,6.74305198,3050.7,3050.6,0.001]
[1764521636724,6.71028321,3050.7,3050.6,0.001]
[1764521636925,5.78907921,3050.7,3050.6,0.001]
[1764521637148,5.72184798,3050.7,3050.6,0.4771]
[1764521637345,5.5904879,3050.7,3050.6,0.9746]
[1764521637548,5.7974879,3050.7,3050.6,0.9746]
[1764521639663,5.7974879,3050.7,3050.6,0.4771]
[1764521640764,5.7974879,3050.7,3050.6,0.001]
[1764521640940,6.10981145,3050.7,3050.6,0.001]
[1764521641258,7.2864919,3050.7,3050.6,0.001]
[1764521641463,7.25372313,3050.7,3050.6,0.001]
[1764521647374,6.76872313,3050.7,3050.6,0.001]
[1764521648552,7.01122313,3050.7,3050.6,0.001]
[1764521651369,7.25372313,3050.7,3050.6,0.001]
[1764521654280,10.70572313,3050.7,3050.6,0.001]
[1764521654482,10.70572313,3050.7,3050.2,0.001]
[1764521654483,0.0644,3050.5,3050.2,0.001]
[1764521654690,1.37179811,3050.2,3049.5,0.001]